fUST/lending_fUST_20240819
["ID","MTS","AMOUNT","RATE_DAILY","PERIOD"]
[335252193,1724037046501,-500.0,0.00016438,2]
[335252194,1724037046510,-710.85,0.00016438,2]
[335252195,1724037046519,-184.18505,0.00016438,2]
[335252196,1724037046529,-184.18505,0.00016438,2]
[335252197,1724037046539,-500.0,0.00016438,2]
[335252198,1724037046549,-500.0,0.00016438,2]
[335252199,1724037046559,-500.0,0.00016438,2]
[335252200,1724037046569,-500.0,0.00016438,2]
[335252201,1724037046579,-500.0,0.00016438,2]
[335252202,1724037046588,-500.0,0.00016438,2]
[335252203,1724037046598,-180.24542059,0.00016438,2]
[335252204,1724037046607,-506.85263888,0.00016438,2]
[335252205,1724037046618,-500.0,0.00016438,2]
[335252206,1724037046628,-497.98880472,0.00016438,2]
[335252207,1724037046638,-501.80816247,0.00016438,2]
[335252208,1724037046647,-500.0,0.00016438,2]
[335252209,1724037046657,-502.32926269,0.00016438,2]
[335252210,1724037046666,-500.0,0.00016438,2]
[335252211,1724037046676,-500.0,0.00016438,2]
[335252212,1724037046686,-507.9383321,0.00016438,2]
[335252213,1724037046696,-500.0,0.00016438,2]
[335252214,1724037046705,-500.0,0.00016438,2]
[335252215,1724037046715,-504.77979138,0.00016438,2]
[335252216,1724037046725,-500.0,0.00016438,2]
[335252217,1724037046734,-633.38913776,0.00016438,2]
[335252218,1724037046743,-500.0,0.00016438,2]
[335252219,1724037046753,-500.0,0.00016438,2]
[335252220,1724037046763,-500.89699519,0.00016438,2]
[335252221,1724037046775,-500.0,0.00016438,2]
[335252222,1724037046784,-500.0,0.00016438,2]
[335252223,1724037046794,-500.0,0.00016438,2]
[335252224,1724037046803,-40.52199363,0.00016438,2]
[335252225,1724037047419,-459.47800637,0.00016438,2]
[335252226,1724037047429,-500.0,0.00016438,2]
[335252227,1724037047440,-500.0,0.00016438,2]
[335252228,1724037047449,-151.0,0.00016438,2]
[335252229,1724037047458,-500.0,0.00016438,2]
[335252230,1724037047467,-151.0,0.00016438,2]
[335252231,1724037047478,-500.0,0.00016438,2]
[335252232,1724037047487,-151.0,0.00016438,2]
[335252233,1724037047496,-503.84,0.00016438,2]
[335252234,1724037047506,-151.0,0.00016438,2]
[335252235,1724037047515,-151.0,0.00016438,2]
[335252236,1724037047524,-253.608189,0.00016438,2]
[335252237,1724037047534,-500.0,0.00016438,2]
[335252238,1724037047543,-505.3731894,0.00016438,2]
[335252239,1724037047552,-500.0,0.00016438,2]
[335252240,1724037047562,-504.07242754,0.00016438,2]
[335252241,1724037047571,-500.0,0.00016438,2]
[335252242,1724037047580,-503.95412494,0.00016438,2]
[335252243,1724037047590,-151.0,0.00016438,2]
[335252244,1724037047600,-151.0,0.00016438,2]
[335252245,1724037047610,-152.35498,0.00016438,2]
[335252246,1724037047619,-500.0,0.00016438,2]
[335252247,1724037047630,-500.0,0.00016438,2]
[335252248,1724037047639,-514.01504811,0.00016438,2]
[335252249,1724037047649,-500.0,0.00016438,2]
[335252250,1724037047659,-741.08,0.00016438,2]
[335252251,1724037047668,-171.9492132,0.00016438,2]
[335252252,1724037047677,-536.33,0.00016438,2]
[335252253,1724037047687,-504.10284579,0.00016438,2]
[335252254,1724037047696,-501.57496952,0.00016438,2]
[335252255,1724037047706,-504.25787178,0.00016438,2]
[335252256,1724037047715,-635.84149051,0.00016438,2]
[335252257,1724037047725,-1000.0,0.00016438,2]
[335252258,1724037047735,-500.0,0.00016438,2]
[335252259,1724037047744,-508.52997352,0.00016438,2]
[335252260,1724037047753,-500.0,0.00016438,2]
[335252261,1724037047763,-500.0,0.00016438,2]
[335252262,1724037047772,-500.0,0.00016438,2]
[335252263,1724037047781,-151.0,0.00016438,2]
[335252264,1724037047790,-151.0,0.00016438,2]
[335252265,1724037047799,-151.0,0.00016438,2]
[335252266,1724037047808,-500.0,0.00016438,2]
[335252267,1724037047818,-510.84377627,0.00016438,2]
[335252268,1724037047827,-504.11922932,0.00016438,2]
[335252269,1724037047837,-501.50911944,0.00016438,2]
[335252270,1724037047846,-502.11210097,0.00016438,2]
[335252271,1724037047856,-509.03018034,0.00016438,2]
[335252272,1724037047865,-505.42376869,0.00016438,2]
[335252273,1724037047875,-1693.65246,0.00016438,2]
[335252274,1724037047885,-1693.65246,0.00016438,2]
[335252275,1724037047895,-1693.65246,0.00016438,2]
[335252276,1724037047905,-500.0,0.00016438,2]
[335252277,1724037047915,-989.34,0.00016438,2]
[335252278,1724037047925,-1693.65246,0.00016438,2]
[335252279,1724037047934,-633.56859619,0.00016438,2]
[335252280,1724037047944,-1693.65246,0.00016438,2]
[335252281,1724037047954,-500.0,0.00016438,2]
[335252282,1724037047964,-151.0,0.00016438,2]
[335252283,1724037047973,-1693.65246,0.00016438,2]
[335252284,1724037047983,-151.0,0.00016438,2]
[335252285,1724037047992,-151.0,0.00016438,2]
[335252286,1724037048002,-785.63,0.00016438,2]
[335252287,1724037048011,-1155.878446,0.00016438,2]
[335252288,1724037048021,-1155.878446,0.00016438,2]
[335252289,1724037048031,-492.632521,0.00016438,2]
[335252290,1724037048040,-1155.878446,0.00016438,2]
[335252291,1724037048049,-492.632521,0.00016438,2]
[335252292,1724037048060,-492.632521,0.00016438,2]
[335252293,1724037048070,-690.34,0.00016438,2]
[335252294,1724037048079,-500.86783738,0.00016438,2]
[335252295,1724037048088,-492.632521,0.00016438,2]
[335252296,1724037048098,-504.49097661,0.00016438,2]
[335252297,1724037048108,-492.632521,0.00016438,2]
[335252298,1724037048119,-832.28,0.00016438,2]
[335252299,1724037048129,-492.632521,0.00016438,2]
[335252300,1724037048138,-1155.878446,0.00016438,2]
[335252301,1724037048148,-1155.878446,0.00016438,2]
[335252302,1724037048158,-1155.878446,0.00016438,2]
[335252303,1724037048168,-501.34344847,0.00016438,2]
[335252304,1724037048177,-501.53325687,0.00016438,2]
[335252305,1724037048187,-500.0,0.00016438,2]
[335252306,1724037048200,-501.46778864,0.00016438,2]
[335252307,1724037048210,-1547.406028,0.00016438,2]
[335252308,1724037048221,-1547.406028,0.00016438,2]
[335252309,1724037048230,-1547.406028,0.00016438,2]
[335252310,1724037048240,-500.0,0.00016438,2]
[335252311,1724037048251,-1547.406028,0.00016438,2]
[335252312,1724037048261,-500.0,0.00016438,2]
[335252313,1724037048271,-1547.406028,0.00016438,2]
[335252314,1724037048280,-1547.406028,0.00016438,2]
[335252315,1724037048290,-252.453748,0.00016438,2]
[335252316,1724037048301,-500.0,0.00016438,2]
[335252317,1724037048311,-252.453748,0.00016438,2]
[335252318,1724037048321,-252.453748,0.00016438,2]
[335252319,1724037048332,-500.0,0.00016438,2]
[335252320,1724037048343,-500.0,0.00016438,2]
[335252321,1724037048352,-500.0,0.00016438,2]
[335252322,1724037048362,-500.0,0.00016438,2]
[335252323,1724037048373,-500.0,0.00016438,2]
[335252324,1724037048387,-500.0,0.00016438,2]
[335252325,1724037048396,-502.52752899,0.00016438,2]
[335252326,1724037048406,-500.0,0.00016438,2]
[335252327,1724037048415,-500.0,0.00016438,2]
[335252328,1724037048426,-500.0,0.00016438,2]
[335252329,1724037048435,-500.0,0.00016438,2]
[335252330,1724037048446,-252.453748,0.00016438,2]
[335252331,1724037048455,-500.0,0.00016438,2]
[335252332,1724037048465,-252.453748,0.00016438,2]
[335252333,1724037048475,-500.0,0.00016438,2]
[335252334,1724037048484,-252.453748,0.00016438,2]
[335252335,1724037048494,-500.0,0.00016438,2]
[335252336,1724037048503,-500.0,0.00016438,2]
[335252337,1724037048513,-500.0,0.00016438,2]
[335252338,1724037048522,-500.0,0.00016438,2]
[335252339,1724037048531,-500.0,0.00016438,2]
[335252340,1724037048541,-500.0,0.00016438,2]
[335252341,1724037048550,-479.08474328,0.00016438,2]
[335252342,1724037048560,-503.03143655,0.00016438,2]
[335252343,1724037048570,-501.01892002,0.00016438,2]
[335252344,1724037048579,-500.0,0.00016438,2]
[335252345,1724037048588,-500.0,0.00016438,2]
[335252346,1724037048598,-500.0,0.00016438,2]
[335252347,1724037048607,-761.14,0.00016438,2]
[335252348,1724037048616,-500.0,0.00016438,2]
[335252349,1724037048627,-511.62332892,0.00016438,2]
[335252350,1724037048636,-500.0,0.00016438,2]
[335252351,1724037048646,-500.0,0.00016438,2]
[335252352,1724037048655,-500.0,0.00016438,2]
[335252353,1724037048664,-500.0,0.00016438,2]
[335252354,1724037048673,-650.06,0.00016438,2]
[335252355,1724037048682,-500.0,0.00016438,2]
[335252356,1724037048692,-504.59690877,0.00016438,2]
[335252357,1724037048978,-9.67500498,0.00016438,2]
[335252358,1724037048987,-284.50225452,0.00016438,2]
[335252359,1724037048998,-215.49774548,0.00016438,2]
[335252360,1724037049008,-500.0,0.00016438,2]
[335252361,1724037049017,-508.68945879,0.00016438,2]
[335252362,1724037049026,-500.0,0.00016438,2]
[335252363,1724037049035,-500.0,0.00016438,2]
[335252364,1724037049045,-500.0,0.00016438,2]
[335252365,1724037049054,-745.04382427,0.00016438,2]
[335252366,1724037049065,-552.67617573,0.00016438,2]
[335252367,1724037049075,-24.86696909,0.00016438,2]
[335252368,1724037049098,-65.45746549,0.00016438,2]
[335252369,1724037049137,-264.46625028,0.00010803,2]
[335252370,1724037049563,-81.00794501,0.00010803,2]
[335252371,1724037049576,-91.41697842,0.00010803,2]
[335252372,1724037049586,-342.84951532,0.00010803,2]
[335252374,1724037293124,10000.0,0.000165,10]
[335252390,1724038149115,-600.88577429,7.911e-05,2]
[335252391,1724038149138,-155.03739121,7.911e-05,2]
[335252392,1724038149159,-404.39043971,7.911e-05,2]
[335252393,1724038149182,-1260.9332948,7.954e-05,2]
[335252394,1724038149207,-165.091794,8.643e-05,2]
[335252395,1724038149232,-165.091794,8.708e-05,2]
[335252396,1724038149255,-165.091794,8.772e-05,2]
[335252397,1724038149277,-165.091794,8.836e-05,2]
[335252398,1724038149300,-165.091794,8.901e-05,2]
[335252399,1724038149321,-300.0,8.909e-05,2]
[335252400,1724038149344,-24652.74945484,8.91e-05,2]
[335252485,1724038233061,-247.25054516,8.91e-05,2]
[335252486,1724038233073,-165.091794,8.965e-05,2]
[335252487,1724038233083,-9.68172984,9.03e-05,2]
[335252488,1724038233096,-155.41006416,9.03e-05,2]
[335252489,1724038233105,-165.091794,9.094e-05,2]
[335252490,1724038233115,-758.22364014,0.0001,2]
[335252510,1724038238799,-59.29174168,0.0001,2]
[335252512,1724038238809,-410.42681097,0.0001,2]
[335252653,1724038392566,150.0,0.000165,30]
[335252662,1724039242132,-196.72510748,8.81e-05,2]
[335252663,1724039242155,-69.22600373,8.861e-05,2]
[335252664,1724039361120,-290.83616093,8.769e-05,2]
[335252665,1724039361143,-228.56173558,9.015e-05,2]
[335252705,1724039438343,-21.43827092,9.015e-05,2]
[335252706,1724039438354,-300.0,9.855e-05,2]
[335252707,1724039438363,-300.0,9.855e-05,2]
[335252708,1724039438375,-24900.0,9.856e-05,2]
[335252709,1724039438386,-2263.98759805,0.0001,2]
[335252710,1724039438397,-1671.80534877,0.0001,2]
[335252711,1724039438407,-154.69833824,0.0001,2]
[335252712,1724039438418,-817.51538182,0.0001,2]
[335252713,1724039438428,-208.11160678,0.0001,2]
[335252714,1724039438438,-413.66267349,0.0001,2]
[335252715,1724039438447,-288.27624498,0.0001,2]
[335252716,1724039438458,-20794.87454007,0.00010081,2]
[335252717,1724039438467,-150.47712021,0.00010214,2]
[335252718,1724039438478,-5328.69624806,0.00010223,2]
[335252719,1724039438488,-5328.69624806,0.00010422,2]
[335252720,1724039438497,-1544.07123507,0.00010544,2]
[335252721,1724039438506,-5328.69624806,0.00010866,2]
[335252722,1724039438515,-5328.69624806,0.00011136,2]
[335252723,1724039438525,-5328.69624806,0.00011385,2]
[335252724,1724039438535,-196.82788322,0.00012551,2]
[335252725,1724039438546,-600.88577429,0.00012689,2]
[335252726,1724039438556,-1100.38195208,0.000129,2]
[335252727,1724039438565,-493.25192424,0.0001295,2]
[335252728,1724039438575,-192.47506614,0.00012989,2]
[335252729,1724039438586,-862.44048895,0.00013,2]
[335252730,1724039438595,-520.42439304,0.00013025,2]
[335252731,1724039438604,-1100.38195206,0.00013471,2]
[335252732,1724039438615,-4139.58244956,0.00013598,2]
[335252733,1724039438625,-997.567736,0.0001365,2]
[335252734,1724039438636,-69162.518047,0.00013688,2]
[335252735,1724039438645,-69162.518047,0.00013689,2]
[335252736,1724039438654,-160.05568082,0.00013697,2]
[335252737,1724039438663,-500.0,0.00013698,2]
[335252738,1724039438672,-500.0,0.00013698,2]
[335252739,1724039438682,-500.0,0.00013698,2]
[335252740,1724039438691,-500.0,0.00013698,2]
[335252741,1724039438701,-585.76634912,0.00013698,2]
[335252742,1724039438710,-500.0,0.00013698,2]
[335252743,1724039438719,-500.0,0.00013698,2]
[335252744,1724039438729,-500.0,0.00013698,2]
[335252745,1724039438738,-592.49989656,0.00013698,2]
[335252746,1724039438748,-500.0,0.00013698,2]
[335252747,1724039438757,-343.69161482,0.00013698,2]
[335252748,1724039438767,-500.0,0.00013698,2]
[335252749,1724039438776,-500.59257658,0.00013698,2]
[335252750,1724039438786,-462.55874543,0.00013698,2]
[335252751,1724039438796,-500.0,0.00013698,2]
[335252752,1724039438805,-500.0,0.00013698,2]
[335252753,1724039438814,-500.0,0.00013698,2]
[335252754,1724039438824,-500.0,0.00013698,2]
[335252755,1724039438834,-383.58382112,0.00013698,2]
[335252756,1724039438843,-500.0,0.00013698,2]
[335252757,1724039438852,-248.81229758,0.00013698,2]
[335252758,1724039438861,-500.0,0.00013698,2]
[335252759,1724039438873,-243.07384544,0.00013698,2]
[335252760,1724039438884,-500.0,0.00013698,2]
[335252761,1724039438894,-500.0,0.00013698,2]
[335252762,1724039438904,-500.0,0.00013698,2]
[335252763,1724039438915,-500.0,0.00013698,2]
[335252764,1724039438925,-500.0,0.00013698,2]
[335252765,1724039438934,-500.0,0.00013698,2]
[335252766,1724039438944,-500.0,0.00013698,2]
[335252767,1724039438954,-579.13083007,0.00013698,2]
[335252768,1724039438964,-3000.0,0.00013699,2]
[335252769,1724039438974,-2611.899621,0.00013699,2]
[335252770,1724039438984,-35359.4473214,0.00013699,2]
[335252771,1724039438993,-1484.67840761,0.00013699,2]
[335252772,1724039439003,-1484.67840761,0.00013699,2]
[335252773,1724039439014,-1484.67840761,0.00013699,2]
[335252774,1724039439024,-1484.67840761,0.00013699,2]
[335252775,1724039439036,-1484.67840761,0.00013699,2]
[335252776,1724039439047,-1484.67840761,0.00013699,2]
[335252777,1724039439056,-1484.67840761,0.00013699,2]
[335252778,1724039439066,-1484.67840761,0.00013699,2]
[335252779,1724039439077,-1484.67840761,0.00013699,2]
[335252780,1724039439087,-1484.67840761,0.00013699,2]
[335252781,1724039439096,-1484.67840761,0.00013699,2]
[335252782,1724039439106,-1484.67840761,0.00013699,2]
[335252783,1724039439118,-1484.67840761,0.00013699,2]
[335252784,1724039439127,-1484.67840761,0.00013699,2]
[335252785,1724039439137,-1484.67840761,0.00013699,2]
[335252786,1724039439148,-1484.67840761,0.00013699,2]
[335252787,1724039439158,-1484.67840761,0.00013699,2]
[335252788,1724039439168,-1484.67840761,0.00013699,2]
[335252789,1724039439177,-1484.67840761,0.00013699,2]
[335252790,1724039439188,-1484.67840761,0.00013699,2]
[335252791,1724039439198,-1484.67840761,0.00013699,2]
[335252792,1724039439209,-1484.67840761,0.00013699,2]
[335252793,1724039439221,-1484.67840761,0.00013699,2]
[335252794,1724039439231,-1484.67840761,0.00013699,2]
[335252795,1724039439240,-1484.67840761,0.00013699,2]
[335252796,1724039439249,-1484.67840757,0.00013699,2]
[335252797,1724039439258,-1484.67840757,0.00013699,2]
[335252798,1724039439268,-150.112233,0.000137,2]
[335252799,1724039439277,-150.112233,0.000139,2]
[335252800,1724039439286,-69162.518047,0.0001399,2]
[335252801,1724039439296,-155.05103229,0.00014,2]
[335252802,1724039439306,-20715.93667635,0.00014,4]
[335252803,1724039439318,-4139.58244954,0.00014149,2]
[335252804,1724039439329,-150.112233,0.000142,2]
[335252805,1724039439340,-495.14476956,0.00014245,2]
[335252806,1724039439350,-344.084564,0.00014247,2]
[335252808,1724039439360,-150.112233,0.000145,2]
[335252809,1724039439370,-4139.58244954,0.00014699,2]
[335252810,1724039439380,-150.112233,0.000148,2]
[335252811,1724039439389,-210.14610602,0.000149,2]
[335252812,1724039439398,-210.14610602,0.000149,2]
[335252813,1724039439407,-5244.78933856,0.00015,2]
[335252814,1724039439417,-953.38755458,0.00015,2]
[335252815,1724039439426,-1110.9613583,0.00015,2]
[335252816,1724039439436,-155.46671401,0.00015,2]
[335252817,1724039439446,-576.34502091,0.00015,2]
[335252818,1724039439455,-12886.69861989,0.00015,2]
[335252819,1724039439464,-150.112233,0.00015,2]
[335252820,1724039439474,-295.0138388,0.0001505,2]
[335252821,1724039439483,-160.0,0.00015112,3]
[335252822,1724039439652,-4139.58244954,0.0001525,2]
[335252823,1724039439662,-500.0,0.00015269,2]
[335252824,1724039439685,-500.0,0.00015269,2]
[335252825,1724039439696,-153.0,0.00015288,2]
[335252826,1724039439706,-308.1237061,0.00015288,2]
[335252827,1724039439716,-153.0,0.00015288,2]
[335252829,1724039439727,-306.0,0.00015288,2]
[335252831,1724039439738,-153.0,0.00015288,2]
[335252833,1724039439748,-153.0,0.00015288,2]
[335252835,1724039439759,-153.0,0.00015288,2]
[335252837,1724039439768,-153.0,0.00015288,2]
[335252839,1724039439778,-153.0,0.00015288,2]
[335252842,1724039439789,-150.112234,0.000153,2]
[335252844,1724039439799,-150.112233,0.000153,2]
[335252845,1724039439809,-160.0,0.00015352,4]
[335252847,1724039439819,-306.7581212,0.00015479,2]
[335252850,1724039439830,-69162.518047,0.0001549,2]
[335252851,1724039439840,-500.0,0.000155,7]
[335252853,1724039439851,-500.0,0.000155,7]
[335252854,1724039439862,-500.0,0.000155,7]
[335252855,1724039439876,-500.0,0.000155,7]
[335252857,1724039439887,-500.0,0.000155,7]
[335252858,1724039439898,-500.0,0.000155,7]
[335252859,1724039439909,-500.0,0.000155,7]
[335252860,1724039439921,-500.0,0.000155,7]
[335252861,1724039439932,-500.0,0.000155,7]
[335252862,1724039439944,-500.0,0.000155,7]
[335252863,1724039439957,-500.0,0.000155,7]
[335252864,1724039439967,-399.33,0.000155,7]
[335252865,1724039439976,-500.0,0.000155,7]
[335252866,1724039439987,-500.0,0.000155,7]
[335252867,1724039439996,-500.0,0.000155,7]
[335252868,1724039440007,-500.0,0.000155,7]
[335252869,1724039440016,-500.0,0.000155,7]
[335252870,1724039440027,-500.0,0.000155,7]
[335252871,1724039440038,-500.0,0.000155,7]
[335252872,1724039440048,-500.0,0.000155,7]
[335252873,1724039440058,-500.0,0.000155,7]
[335252874,1724039440069,-500.0,0.000155,7]
[335252875,1724039440082,-500.0,0.000155,7]
[335252876,1724039440092,-500.0,0.000155,7]
[335252878,1724039440103,-500.0,0.000155,7]
[335252879,1724039440112,-500.0,0.000155,7]
[335252880,1724039440123,-500.0,0.000155,7]
[335252881,1724039440134,-500.0,0.000155,7]
[335252882,1724039440145,-500.0,0.000155,7]
[335252883,1724039440155,-379.47,0.000155,7]
[335252884,1724039440164,-500.0,0.000155,7]
[335252885,1724039440175,-500.0,0.000155,7]
[335252886,1724039440187,-500.0,0.000155,7]
[335252887,1724039440199,-500.0,0.000155,7]
[335252888,1724039440210,-500.0,0.000155,7]
[335252889,1724039440221,-222.456338,0.000155,2]
[335252890,1724039440231,-222.456338,0.000155,2]
[335252891,1724039440241,-153.0,0.00015507,2]
[335252892,1724039440251,-207.5740843,0.00015507,2]
[335252893,1724039440261,-207.5740843,0.00015507,2]
[335252894,1724039440271,-153.0,0.00015507,2]
[335252895,1724039440281,-207.5740843,0.00015507,2]
[335252896,1724039440292,-153.0,0.00015507,2]
[335252897,1724039440301,-153.0,0.00015507,2]
[335252898,1724039440311,-207.5740843,0.00015507,2]
[335252899,1724039440321,-153.0,0.00015507,2]
[335252900,1724039440330,-207.5740843,0.00015507,2]
[335252901,1724039440341,-207.5740843,0.00015507,2]
[335252902,1724039440352,-306.0,0.00015507,2]
[335252903,1724039440363,-207.5740843,0.00015507,2]
[335252904,1724039440372,-207.5740843,0.00015507,2]
[335252905,1724039440383,-3395.07291865,0.0001556,2]
[335252906,1724039440398,-160.0,0.00015593,5]
[335252907,1724039440409,-150.112233,0.000156,2]
[335252908,1724039440419,-150.112233,0.000156,2]
[335252909,1724039440428,-150.0,0.00015611,2]
[335252910,1724039440438,-521.0,0.00015611,2]
[335252911,1724039440447,-1414.0,0.00015611,2]
[335252912,1724039440457,-150.068,0.00015611,2]
[335252913,1724039440467,-150.049,0.00015611,2]
[335252914,1724039440476,-4166.0,0.00015611,2]
[335252915,1724039440486,-69162.518047,0.0001565,2]
[335252916,1724039440495,-63553.0,0.0001566,7]
[335252917,1724039440505,-222.456338,0.0001566,2]
[335252918,1724039440518,-222.456338,0.0001566,2]
[335252919,1724039440528,-189.1451,0.00015671,2]
[335252920,1724039440538,-224.772582,0.00015671,2]
[335252921,1724039440548,-160.242349,0.00015671,2]
[335252922,1724039440558,-291.638214,0.00015671,2]
[335252923,1724039440567,-162.697687,0.00015671,2]
[335252924,1724039440577,-167.901839,0.00015671,2]
[335252925,1724039440588,-168.901412,0.00015671,2]
[335252926,1724039440598,-334.46860774,0.00015707,7]
[335252927,1724039440607,-4139.58244954,0.000158,2]
[335252928,1724039440617,-160.0,0.00015834,6]
[335252929,1724039440628,-189.1451,0.00015867,2]
[335252930,1724039440641,-224.772582,0.00015867,2]
[335252931,1724039440651,-162.697687,0.00015867,2]
[335252932,1724039440661,-167.901839,0.00015867,2]
[335252933,1724039440671,-295.0138388,0.00015872,2]
[335252934,1724039440681,-295.0138388,0.00015872,2]
[335252935,1724039440691,-590.0276776,0.00015872,2]
[335252936,1724039440700,-295.0138388,0.00015872,2]
[335252937,1724039440710,-7895.53761022,0.0001588,2]
[335252938,1724039440719,-151.0,0.0001589,2]
[335252939,1724039440729,-151.0,0.0001589,2]
[335252940,1724039440738,-151.0,0.0001589,2]
[335252941,1724039440748,-151.0,0.0001589,2]
[335252942,1724039440758,-418.802026,0.0001589,2]
[335252943,1724039440767,-418.802026,0.0001589,2]
[335252944,1724039440777,-197.267376,0.0001589,2]
[335252945,1724039440787,-197.267376,0.0001589,2]
[335252946,1724039440796,-457.848777,0.0001589,2]
[335252947,1724039440806,-457.848777,0.0001589,2]
[335252948,1724039440815,-289.12333,0.0001589,2]
[335252949,1724039440825,-560.081687,0.0001589,2]
[335252950,1724039440835,-882.585703,0.0001589,2]
[335252951,1724039440844,-151.0,0.0001589,2]
[335252952,1724039440854,-882.585703,0.0001589,2]
[335252953,1724039440863,-1601.505462,0.0001589,2]
[335252954,1724039440874,-1601.505462,0.0001589,2]
[335252955,1724039440887,-151.0,0.0001589,2]
[335252956,1724039440897,-151.0,0.0001589,2]
[335252957,1724039440907,-1309.738412,0.0001589,2]
[335252958,1724039440919,-1309.738412,0.0001589,2]
[335252959,1724039440929,-151.0,0.0001589,2]
[335252960,1724039440939,-251.144553,0.0001589,2]
[335252961,1724039440952,-151.0,0.0001589,2]
[335252962,1724039440963,-151.0,0.0001589,2]
[335252963,1724039440974,-151.0,0.0001589,2]
[335252964,1724039440983,-151.0,0.0001589,2]
[335252965,1724039440995,-1083.18422,0.0001589,2]
[335252966,1724039441005,-1083.18422,0.0001589,2]
[335252967,1724039441016,-176.717623,0.0001589,2]
[335252968,1724039441028,-344.842765,0.0001589,2]
[335252969,1724039441038,-377.002143,0.0001589,2]
[335252970,1724039441049,-150.112233,0.000159,2]
[335252971,1724039441059,-150.112233,0.000159,2]
[335252972,1724039441068,-160.242349,0.00015932,2]
[335252973,1724039441078,-151.0,0.0001599,2]
[335252974,1724039441087,-151.0,0.0001599,2]
[335252975,1724039441097,-151.0,0.0001599,2]
[335252976,1724039441106,-151.0,0.0001599,2]
[335252977,1724039441115,-418.802026,0.0001599,2]
[335252978,1724039441125,-418.802026,0.0001599,2]
[335252979,1724039441137,-197.267376,0.0001599,2]
[335252980,1724039441147,-197.267376,0.0001599,2]
[335252981,1724039441158,-457.848777,0.0001599,2]
[335252982,1724039441168,-457.848777,0.0001599,2]
[335252983,1724039441178,-560.081687,0.0001599,2]
[335252984,1724039441188,-560.081687,0.0001599,2]
[335252985,1724039441198,-882.585703,0.0001599,2]
[335252986,1724039441207,-151.0,0.0001599,2]
[335252987,1724039441217,-882.585703,0.0001599,2]
[335252988,1724039441227,-1601.505462,0.0001599,2]
[335252989,1724039441236,-1601.505462,0.0001599,2]
[335252990,1724039441246,-151.0,0.0001599,2]
[335252991,1724039441256,-151.0,0.0001599,2]
[335252992,1724039441267,-1309.738412,0.0001599,2]
[335252993,1724039441277,-1309.738412,0.0001599,2]
[335252994,1724039441287,-151.0,0.0001599,2]
[335252995,1724039441296,-151.0,0.0001599,2]
[335252996,1724039441305,-151.0,0.0001599,2]
[335252997,1724039441315,-151.0,0.0001599,2]
[335252998,1724039441324,-151.0,0.0001599,2]
[335252999,1724039441333,-1083.18422,0.0001599,2]
[335253000,1724039441344,-1083.18422,0.0001599,2]
[335253001,1724039441354,-176.717623,0.0001599,2]
[335253002,1724039441363,-176.717623,0.0001599,2]
[335253003,1724039441373,-344.842765,0.0001599,2]
[335253004,1724039441385,-58237.06630224,0.00016,2]
[335253005,1724039441395,-247.98372407,0.00016,2]
[335253006,1724039441404,-151.0,0.00016,2]
[335253007,1724039441413,-151.0,0.00016,2]
[335253008,1724039441423,-809.114912,0.00016,2]
[335253009,1724039441432,-809.114912,0.00016,2]
[335253010,1724039441442,-283.046539,0.00016,2]
[335253011,1724039441451,-283.046539,0.00016,2]
[335253012,1724039441461,-1185.556722,0.00016,2]
[335253013,1724039441471,-1185.556722,0.00016,2]
[335253014,1724039441483,-151.0,0.00016,2]
[335253015,1724039441493,-178.886012,0.00016,2]